[Event "Late-Titled-Tuesday-Blitz-April-02-2024"]
[Site "Chess.com"]
[Date "2024.04.02"]
[Round "6"]
[White "Mikhail_Golubev"]
[Black "Rsnr"]
[Result "0-1"]
[WhiteElo "2627"]
[BlackElo "2880"]
[TimeControl "180+1"]
[EndTime "15:04:47 PDT"]
[Termination "Rsnr won on time"]

1. e4 {[%clk 0:03:00.9]} 1... c6 {[%clk 0:03:00.4]} 2. d4 {[%clk 0:02:58.8]}
2... d5 {[%clk 0:03:01.3]} 3. Nc3 {[%clk 0:02:58.7]} 3... dxe4 {[%clk
0:03:01.8]} 4. Nxe4 {[%clk 0:02:59.6]} 4... Bf5 {[%clk 0:03:02.2]} 5. Ng3 {[%clk
0:02:58.2]} 5... Bg6 {[%clk 0:03:02.6]} 6. c3 {[%clk 0:02:57.3]} 6... e6 {[%clk
0:03:02]} 7. Nh3 {[%clk 0:02:55.8]} 7... Nf6 {[%clk 0:02:41.5]} 8. Nf4 {[%clk
0:02:54.5]} 8... Bd6 {[%clk 0:02:41.6]} 9. h4 {[%clk 0:02:54.6]} 9... Qc7 {[%clk
0:02:42]} 10. Qf3 {[%clk 0:02:54.6]} 10... Nbd7 {[%clk 0:02:42.2]} 11. h5 {[%clk
0:02:54.6]} 11... Bc2 {[%clk 0:02:42.2]} 12. h6 {[%clk 0:02:54.3]} 12... g6
{[%clk 0:02:42]} 13. Bd3 {[%clk 0:02:54.4]} 13... Bxd3 {[%clk 0:02:21.2]} 14.
Nxd3 {[%clk 0:02:55.3]} 14... O-O {[%clk 0:02:04.6]} 15. Bg5 {[%clk 0:02:48.5]}
15... Nd5 {[%clk 0:02:02]} 16. Ne4 {[%clk 0:02:38.3]} 16... f6 {[%clk
0:01:55.3]} 17. Bd2 {[%clk 0:02:30.1]} 17... Be7 {[%clk 0:01:47.1]} 18. c4
{[%clk 0:02:14.6]} 18... N5b6 {[%clk 0:01:47]} 19. b3 {[%clk 0:02:12.6]} 19...
Rae8 {[%clk 0:01:40]} 20. O-O {[%clk 0:02:08.2]} 20... Qd8 {[%clk 0:01:17.7]}
21. Rad1 {[%clk 0:01:50.8]} 21... f5 {[%clk 0:01:17.6]} 22. Nc3 {[%clk
0:01:44.3]} 22... Bf6 {[%clk 0:01:17.7]} 23. Be3 {[%clk 0:01:38.9]} 23... Qe7
{[%clk 0:01:16.8]} 24. Rfe1 {[%clk 0:01:35.5]} 24... Qf7 {[%clk 0:01:13.6]} 25.
Qg3 {[%clk 0:01:22.9]} 25... Kh8 {[%clk 0:00:56.2]} 26. Ne2 {[%clk 0:01:04.1]}
26... Nc8 {[%clk 0:00:31.3]} 27. Bg5 {[%clk 0:00:51.6]} 27... Qe7 {[%clk
0:00:27.4]} 28. Bxf6+ {[%clk 0:00:42.9]} 28... Qxf6 {[%clk 0:00:28.3]} 29. Ne5
{[%clk 0:00:41.1]} 29... Re7 {[%clk 0:00:22.6]} 30. Nf4 {[%clk 0:00:38.8]} 30...
Rfe8 {[%clk 0:00:20.5]} 31. Nh3 {[%clk 0:00:22.8]} 31... Nf8 {[%clk 0:00:08.7]}
32. Ng5 {[%clk 0:00:21]} 32... Nd6 {[%clk 0:00:09.1]} 33. Qf4 {[%clk 0:00:17.5]}
33... Rd8 {[%clk 0:00:07.2]} 34. Qh4 {[%clk 0:00:12.4]} 34... Kg8 {[%clk
0:00:06.2]} 35. Qf4 {[%clk 0:00:10.5]} 35... Ne8 {[%clk 0:00:06.1]} 36. Nef3
{[%clk 0:00:09.1]} 36... Nd6 {[%clk 0:00:04.4]} 37. Re5 {[%clk 0:00:08.2]} 37...
Ne8 {[%clk 0:00:02.8]} 38. Rde1 {[%clk 0:00:08.4]} 38... Nc7 {[%clk 0:00:03.5]}
39. R5e2 {[%clk 0:00:07.6]} 39... Rde8 {[%clk 0:00:03.6]} 40. Ne5 {[%clk
0:00:07.4]} 40... Rd8 {[%clk 0:00:04.1]} 41. Nef7 {[%clk 0:00:06.9]} 41... Rxf7
{[%clk 0:00:03.2]} 42. Nxf7 {[%clk 0:00:05.6]} 42... Qxf7 {[%clk 0:00:03.8]} 43.
d5 {[%clk 0:00:05.7]} 43... cxd5 {[%clk 0:00:03.7]} 44. Qh4 {[%clk 0:00:03.2]}
44... Rd7 {[%clk 0:00:03.1]} 45. cxd5 {[%clk 0:00:03.4]} 45... Nxd5 {[%clk
0:00:04]} 46. Rc2 {[%clk 0:00:03.6]} 46... Nf6 {[%clk 0:00:04.3]} 47. Rc8 {[%clk
0:00:03.4]} 47... Ne4 {[%clk 0:00:04.1]} 48. Qf4 {[%clk 0:00:02.4]} 48... g5
{[%clk 0:00:03.7]} 49. Qb8 {[%clk 0:00:02.2]} 49... Qf6 {[%clk 0:00:03.3]} 50.
Rec1 {[%clk 0:00:02.2]} 50... Rf7 {[%clk 0:00:03.3]} 51. Re8 {[%clk 0:00:02.2]}
51... Qd4 {[%clk 0:00:02.5]} 52. Rf1 {[%clk 0:00:01.7]} 52... Ng3 {[%clk
0:00:02.9]} 53. Qd8 {[%clk 0:00:01.7]} 53... Qxd8 {[%clk 0:00:02.3]} 54. Rxd8
{[%clk 0:00:01.5]} 54... Nxf1 {[%clk 0:00:03]} 0-1

[Event "Late-Titled-Tuesday-Blitz-April-02-2024"]
[Site "Chess.com"]
[Date "2024.04.02"]
[Round "6"]
[White "lilylg"]
[Black "VD_coach"]
[Result "1/2-1/2"]
[WhiteElo "2242"]
[BlackElo "2584"]
[TimeControl "180+1"]
[EndTime "15:04:49 PDT"]
[Termination "Game drawn by repetition"]

1. d4 {[%clk 0:02:34.6]} 1... Nf6 {[%clk 0:02:58.7]} 2. c4 {[%clk 0:02:32.3]}
2... g6 {[%clk 0:02:59]} 3. d5 {[%clk 0:02:28.4]} 3... Bg7 {[%clk 0:02:58.6]} 4.
Nc3 {[%clk 0:02:20.9]} 4... O-O {[%clk 0:02:57.7]} 5. e4 {[%clk 0:01:41.6]} 5...
d6 {[%clk 0:02:56.6]} 6. h3 {[%clk 0:01:36.9]} 6... e6 {[%clk 0:02:52]} 7. Nf3
{[%clk 0:01:37.5]} 7... c6 {[%clk 0:02:51.7]} 8. Be2 {[%clk 0:01:34.2]} 8...
exd5 {[%clk 0:02:49.2]} 9. exd5 {[%clk 0:01:35.1]} 9... cxd5 {[%clk 0:02:46.6]}
10. cxd5 {[%clk 0:01:36]} 10... Re8 {[%clk 0:02:44.8]} 11. O-O {[%clk
0:01:36.2]} 11... Nbd7 {[%clk 0:02:45]} 12. Re1 {[%clk 0:01:28]} 12... Nc5
{[%clk 0:02:42.3]} 13. Bf4 {[%clk 0:01:25.4]} 13... a6 {[%clk 0:02:34]} 14. Rc1
{[%clk 0:01:11.3]} 14... Bf5 {[%clk 0:02:31.8]} 15. Nd4 {[%clk 0:01:06.7]} 15...
Be4 {[%clk 0:02:19.3]} 16. b4 {[%clk 0:01:04.1]} 16... Ncd7 {[%clk 0:02:04.6]}
17. Bc4 {[%clk 0:00:40]} 17... Nb6 {[%clk 0:01:57.5]} 18. Nxe4 {[%clk
0:00:38.5]} 18... Rxe4 {[%clk 0:01:37.5]} 19. Rxe4 {[%clk 0:00:34.3]} 19... Nxe4
{[%clk 0:01:37.7]} 20. Bb3 {[%clk 0:00:31]} 20... Nxf2 {[%clk 0:01:02]} 21. Kxf2
{[%clk 0:00:27.5]} 21... Qf6 {[%clk 0:01:01.7]} 22. Ne2 {[%clk 0:00:15]} 22...
g5 {[%clk 0:00:59.8]} 23. Qd2 {[%clk 0:00:14.6]} 23... Re8 {[%clk 0:00:50.1]}
24. Rf1 {[%clk 0:00:12.8]} 24... gxf4 {[%clk 0:00:46.1]} 25. Kg1 {[%clk
0:00:13]} 25... Bh6 {[%clk 0:00:35.3]} 26. Qd4 {[%clk 0:00:12.7]} 26... Qxd4+
{[%clk 0:00:26.8]} 27. Nxd4 {[%clk 0:00:13.6]} 27... Re3 {[%clk 0:00:23.9]} 28.
Nf5 {[%clk 0:00:13.3]} 28... Bg5 {[%clk 0:00:22.4]} 29. Nxe3 {[%clk 0:00:12.7]}
29... fxe3 {[%clk 0:00:23.3]} 30. Re1 {[%clk 0:00:09.7]} 30... Nd7 {[%clk
0:00:21.9]} 31. Kf1 {[%clk 0:00:09.6]} 31... Nf6 {[%clk 0:00:20.7]} 32. Ke2
{[%clk 0:00:10.5]} 32... Ne4 {[%clk 0:00:20.9]} 33. Rc1 {[%clk 0:00:10.1]} 33...
h5 {[%clk 0:00:17.6]} 34. Rc8+ {[%clk 0:00:07.3]} 34... Kg7 {[%clk 0:00:17.7]}
35. Bc2 {[%clk 0:00:07.6]} 35... Ng3+ {[%clk 0:00:17.4]} 36. Ke1 {[%clk
0:00:07.8]} 36... Bf6 {[%clk 0:00:13.7]} 37. Re8 {[%clk 0:00:08.7]} 37... Bc3+
{[%clk 0:00:12.3]} 38. Kd1 {[%clk 0:00:09]} 38... e2+ {[%clk 0:00:12.5]} 39.
Rxe2 {[%clk 0:00:08.6]} 39... Nxe2 {[%clk 0:00:13.4]} 40. Kxe2 {[%clk
0:00:08.9]} 40... Bxb4 {[%clk 0:00:14.1]} 41. Bb3 {[%clk 0:00:09.2]} 41... Bc5
{[%clk 0:00:14]} 42. Kf3 {[%clk 0:00:10.1]} 42... Kg6 {[%clk 0:00:14.2]} 43. g4
{[%clk 0:00:09.8]} 43... hxg4+ {[%clk 0:00:14.2]} 44. hxg4 {[%clk 0:00:09.8]}
44... Kg5 {[%clk 0:00:14.7]} 45. Bc2 {[%clk 0:00:10.1]} 45... b5 {[%clk
0:00:14.7]} 46. Be4 {[%clk 0:00:10.4]} 46... a5 {[%clk 0:00:15]} 47. Bf5 {[%clk
0:00:10.3]} 47... b4 {[%clk 0:00:13.6]} 48. Bd7 {[%clk 0:00:11]} 48... Kf6
{[%clk 0:00:13.7]} 49. Be8 {[%clk 0:00:11.3]} 49... Ke7 {[%clk 0:00:13.5]} 50.
Bc6 {[%clk 0:00:11]} 50... Kd8 {[%clk 0:00:13.1]} 51. Ke4 {[%clk 0:00:11.3]}
51... Kc7 {[%clk 0:00:13.1]} 52. Kf5 {[%clk 0:00:11.6]} 52... Bd4 {[%clk
0:00:13.5]} 53. g5 {[%clk 0:00:10.9]} 53... Kd8 {[%clk 0:00:11.6]} 54. Bb5
{[%clk 0:00:10.6]} 54... Ke7 {[%clk 0:00:11.5]} 55. Bc6 {[%clk 0:00:10.7]} 55...
Be3 {[%clk 0:00:11.5]} 56. Bb5 {[%clk 0:00:10.6]} 56... Bd2 {[%clk 0:00:11.5]}
57. Bc6 {[%clk 0:00:10.7]} 57... Bc1 {[%clk 0:00:11.5]} 58. Bb5 {[%clk
0:00:10.8]} 58... Bb2 {[%clk 0:00:11.5]} 59. Bc6 {[%clk 0:00:11.3]} 59... Bg7
{[%clk 0:00:11.3]} 60. Bb5 {[%clk 0:00:11.3]} 60... Be5 {[%clk 0:00:11.5]} 61.
Bc6 {[%clk 0:00:11.4]} 61... Bd4 {[%clk 0:00:11.8]} 62. Bb5 {[%clk 0:00:11.7]}
62... Be5 {[%clk 0:00:12.3]} 63. Bc6 {[%clk 0:00:12.1]} 63... Bd4 {[%clk
0:00:12.7]} 64. Bb5 {[%clk 0:00:12.7]} 64... Be5 {[%clk 0:00:13.2]} 1/2-1/2

[Event "Late-Titled-Tuesday-Blitz-April-02-2024"]
[Site "Chess.com"]
[Date "2024.04.02"]
[Round "6"]
[White "N_Mullodzhanov"]
[Black "MarceloPlaya"]
[Result "0-1"]
[WhiteElo "2539"]
[BlackElo "2416"]
[TimeControl "180+1"]
[EndTime "15:04:53 PDT"]
[Termination "MarceloPlaya won by checkmate"]

1. e4 {[%clk 0:03:00.9]} 1... e6 {[%clk 0:02:58.4]} 2. d4 {[%clk 0:03:00.7]}
2... d5 {[%clk 0:02:56.3]} 3. Nc3 {[%clk 0:03:00.9]} 3... Bb4 {[%clk 0:02:55.1]}
4. Bd3 {[%clk 0:02:57]} 4... c5 {[%clk 0:02:53.1]} 5. Nf3 {[%clk 0:02:54.2]}
5... Nc6 {[%clk 0:02:52.3]} 6. a3 {[%clk 0:02:51.3]} 6... Bxc3+ {[%clk
0:02:49.3]} 7. bxc3 {[%clk 0:02:52.2]} 7... c4 {[%clk 0:02:47.5]} 8. Be2 {[%clk
0:02:50.9]} 8... dxe4 {[%clk 0:02:46.1]} 9. Ng5 {[%clk 0:02:51]} 9... Nf6 {[%clk
0:02:43.1]} 10. Bxc4 {[%clk 0:02:47.4]} 10... h6 {[%clk 0:02:39.5]} 11. Nh3
{[%clk 0:02:47.5]} 11... O-O {[%clk 0:02:36.5]} 12. O-O {[%clk 0:02:46]} 12...
e5 {[%clk 0:02:36.1]} 13. d5 {[%clk 0:02:30.2]} 13... Ne7 {[%clk 0:02:26.7]} 14.
d6 {[%clk 0:02:26.9]} 14... Nf5 {[%clk 0:02:24.7]} 15. f4 {[%clk 0:02:25]} 15...
Nxd6 {[%clk 0:01:58]} 16. fxe5 {[%clk 0:02:21.7]} 16... Nxc4 {[%clk 0:01:57.4]}
17. Qxd8 {[%clk 0:02:20.8]} 17... Rxd8 {[%clk 0:01:56.4]} 18. exf6 {[%clk
0:02:21.5]} 18... Bxh3 {[%clk 0:01:43.4]} 19. gxh3 {[%clk 0:02:22.4]} 19... gxf6
{[%clk 0:01:30.7]} 20. Bxh6 {[%clk 0:02:14.8]} 20... Rd6 {[%clk 0:01:25.9]} 21.
Rae1 {[%clk 0:02:05]} 21... Re8 {[%clk 0:01:21.5]} 22. a4 {[%clk 0:02:02.4]}
22... f5 {[%clk 0:01:19.9]} 23. Bf4 {[%clk 0:02:00]} 23... Rd5 {[%clk
0:01:17.9]} 24. Re2 {[%clk 0:01:58.8]} 24... Re6 {[%clk 0:01:13.9]} 25. h4
{[%clk 0:01:55.3]} 25... Kh7 {[%clk 0:01:12.3]} 26. h5 {[%clk 0:01:52.3]} 26...
Ne5 {[%clk 0:01:07]} 27. Rb1 {[%clk 0:01:45.2]} 27... b6 {[%clk 0:01:00.8]} 28.
Kg2 {[%clk 0:01:41.5]} 28... Nf3 {[%clk 0:00:57.8]} 29. c4 {[%clk 0:01:37.2]}
29... Rd4 {[%clk 0:00:45.6]} 30. Rb5 {[%clk 0:01:34.3]} 30... Rxc4 {[%clk
0:00:39.6]} 31. a5 {[%clk 0:01:13.4]} 31... Nd4 {[%clk 0:00:38]} 32. axb6 {[%clk
0:01:12.2]} 32... axb6 {[%clk 0:00:37.4]} 33. Rd2 {[%clk 0:00:52.1]} 33... Nxb5
{[%clk 0:00:35.4]} 34. Rd8 {[%clk 0:00:50.9]} 34... Rxc2+ {[%clk 0:00:34.1]} 35.
Kg3 {[%clk 0:00:51.3]} 35... Rc3+ {[%clk 0:00:30.7]} 36. Kh4 {[%clk 0:00:49.9]}
36... e3 {[%clk 0:00:29.4]} 37. Bg3 {[%clk 0:00:40.6]} 37... e2 {[%clk
0:00:28.2]} 38. Be1 {[%clk 0:00:39.9]} 38... Rc1 {[%clk 0:00:27]} 39. Bd2 {[%clk
0:00:37.6]} 39... e1=Q+ {[%clk 0:00:25.6]} 40. Bxe1 {[%clk 0:00:36.7]} 40...
Rcxe1 {[%clk 0:00:25.5]} 41. Kg5 {[%clk 0:00:37.5]} 41... f4 {[%clk 0:00:22.1]}
42. Kxf4 {[%clk 0:00:36.8]} 42... Rf1+ {[%clk 0:00:20.4]} 43. Kg5 {[%clk
0:00:36.1]} 43... Re5+ {[%clk 0:00:18.9]} 44. Kg4 {[%clk 0:00:36.3]} 44... Rg1+
{[%clk 0:00:18.2]} 45. Kf4 {[%clk 0:00:35.6]} 45... Rgg5 {[%clk 0:00:18.1]} 46.
h4 {[%clk 0:00:33]} 46... Rxh5 {[%clk 0:00:17.9]} 47. Rd7 {[%clk 0:00:31.5]}
47... Kg7 {[%clk 0:00:17.2]} 48. Kg4 {[%clk 0:00:31.4]} 48... Rhf5 {[%clk
0:00:15.7]} 49. Rd1 {[%clk 0:00:29.9]} 49... Rf2 {[%clk 0:00:15.3]} 50. Rg1
{[%clk 0:00:29.8]} 50... Kh6 {[%clk 0:00:13.9]} 51. Kg3 {[%clk 0:00:29.6]} 51...
Rfe2 {[%clk 0:00:13.5]} 52. Rf1 {[%clk 0:00:29.4]} 52... Nd4 {[%clk 0:00:12.7]}
53. Rxf7 {[%clk 0:00:27.9]} 53... R2e3+ {[%clk 0:00:12.8]} 54. Kg2 {[%clk
0:00:23]} 54... Ra5 {[%clk 0:00:12.4]} 55. Rf6+ {[%clk 0:00:22.7]} 55... Kh5
{[%clk 0:00:12.2]} 56. Rxb6 {[%clk 0:00:23.4]} 56... Ra2+ {[%clk 0:00:11.9]} 57.
Kf1 {[%clk 0:00:24]} 57... Rb3 {[%clk 0:00:10.5]} 58. Rxb3 {[%clk 0:00:16.9]}
58... Nxb3 {[%clk 0:00:09.9]} 59. Ke1 {[%clk 0:00:17.8]} 59... Kxh4 {[%clk
0:00:09.7]} 60. Kf1 {[%clk 0:00:18.3]} 60... Kg3 {[%clk 0:00:09.7]} 61. Ke1
{[%clk 0:00:19.2]} 61... Kf3 {[%clk 0:00:09.1]} 62. Kd1 {[%clk 0:00:20.1]} 62...
Ke3 {[%clk 0:00:08.9]} 63. Ke1 {[%clk 0:00:20.3]} 63... Ra1# {[%clk 0:00:09.1]}
0-1

[Event "Late-Titled-Tuesday-Blitz-April-02-2024"]
[Site "Chess.com"]
[Date "2024.04.02"]
[Round "6"]
[White "Heliosis11"]
[Black "RebelJohnny"]
[Result "0-1"]
[WhiteElo "2416"]
[BlackElo "2614"]
[TimeControl "180+1"]
[EndTime "15:04:54 PDT"]
[Termination "RebelJohnny won on time"]

1. e4 {[%clk 0:02:55.6]} 1... d6 {[%clk 0:03:00.1]} 2. d4 {[%clk 0:02:53.9]}
2... Nf6 {[%clk 0:03:00.5]} 3. Nc3 {[%clk 0:02:53.8]} 3... c6 {[%clk 0:03:00.6]}
4. Nf3 {[%clk 0:02:53.3]} 4... Bg4 {[%clk 0:03:00.5]} 5. h3 {[%clk 0:02:53.1]}
5... Bh5 {[%clk 0:03:00.6]} 6. Be3 {[%clk 0:02:50.9]} 6... e6 {[%clk 0:03:00.7]}
7. Be2 {[%clk 0:02:49.7]} 7... Be7 {[%clk 0:03:01.1]} 8. a4 {[%clk 0:02:49.9]}
8... O-O {[%clk 0:03:01.2]} 9. O-O {[%clk 0:02:49.9]} 9... d5 {[%clk 0:03:01.8]}
10. e5 {[%clk 0:02:50]} 10... Nfd7 {[%clk 0:03:02.5]} 11. Nb1 {[%clk 0:02:46.5]}
11... c5 {[%clk 0:03:02.3]} 12. c3 {[%clk 0:02:46.8]} 12... Nc6 {[%clk
0:03:03.1]} 13. Nfd2 {[%clk 0:02:45.6]} 13... Bg6 {[%clk 0:02:58.6]} 14. Na3
{[%clk 0:02:42.6]} 14... cxd4 {[%clk 0:02:43.2]} 15. cxd4 {[%clk 0:02:43.5]}
15... a6 {[%clk 0:02:40.3]} 16. Qb3 {[%clk 0:02:27.7]} 16... Na5 {[%clk
0:02:29.8]} 17. Qd1 {[%clk 0:02:27.8]} 17... Rc8 {[%clk 0:02:26.1]} 18. f4
{[%clk 0:02:13.1]} 18... Qb6 {[%clk 0:02:19.4]} 19. Ra2 {[%clk 0:01:59.1]} 19...
f6 {[%clk 0:01:43.4]} 20. Kh1 {[%clk 0:01:48.9]} 20... fxe5 {[%clk 0:01:41]} 21.
fxe5 {[%clk 0:01:48.7]} 21... Rxf1+ {[%clk 0:01:35.5]} 22. Nxf1 {[%clk
0:01:47.9]} 22... Qb3 {[%clk 0:01:22.9]} 23. Qxb3 {[%clk 0:01:47.2]} 23... Nxb3
{[%clk 0:01:23.8]} 24. Bg4 {[%clk 0:01:40.7]} 24... Kf7 {[%clk 0:01:14.4]} 25.
Nd2 {[%clk 0:01:27.9]} 25... Nxd2 {[%clk 0:00:32.8]} 26. Bxd2 {[%clk 0:01:24.3]}
26... Nb6 {[%clk 0:00:32.1]} 27. Bc3 {[%clk 0:01:14.5]} 27... Nxa4 {[%clk
0:00:26.8]} 28. Bd2 {[%clk 0:01:05.3]} 28... Nb6 {[%clk 0:00:24]} 29. Ra1 {[%clk
0:00:54.9]} 29... Bxa3 {[%clk 0:00:21]} 30. bxa3 {[%clk 0:00:51.4]} 30... Nc4
{[%clk 0:00:21.3]} 31. Rf1+ {[%clk 0:00:51.5]} 31... Ke7 {[%clk 0:00:21.7]} 32.
Bb4+ {[%clk 0:00:52.1]} 32... Kd7 {[%clk 0:00:22.3]} 33. Rf3 {[%clk 0:00:30]}
33... a5 {[%clk 0:00:19]} 34. Be1 {[%clk 0:00:28.2]} 34... b6 {[%clk 0:00:15.2]}
35. h4 {[%clk 0:00:26.6]} 35... h5 {[%clk 0:00:13.1]} 36. Bh3 {[%clk 0:00:26.5]}
36... Ke7 {[%clk 0:00:06.1]} 37. Rg3 {[%clk 0:00:26.2]} 37... Kf7 {[%clk
0:00:05.5]} 38. Bxe6+ {[%clk 0:00:25.9]} 38... Kxe6 {[%clk 0:00:06.4]} 39. Rxg6+
{[%clk 0:00:26.6]} 39... Kf5 {[%clk 0:00:06.8]} 40. Rxg7 {[%clk 0:00:25.4]}
40... Ne3 {[%clk 0:00:07.2]} 41. Bd2 {[%clk 0:00:19.9]} 41... Ng4 {[%clk
0:00:06.3]} 42. Rg5+ {[%clk 0:00:12.7]} 42... Ke4 {[%clk 0:00:06.9]} 43. g3
{[%clk 0:00:07.5]} 43... Rc2 {[%clk 0:00:06.5]} 44. Bf4 {[%clk 0:00:06.8]} 44...
Kxd4 {[%clk 0:00:05.4]} 45. e6 {[%clk 0:00:05]} 45... Nf2+ {[%clk 0:00:06]} 46.
Kg2 {[%clk 0:00:03.2]} 46... Ne4+ {[%clk 0:00:06.5]} 47. Kf3 {[%clk 0:00:03.9]}
47... Nxg5+ {[%clk 0:00:06.6]} 48. Bxg5 {[%clk 0:00:04.8]} 48... Ke5 {[%clk
0:00:05.5]} 49. e7 {[%clk 0:00:04.5]} 49... Rc8 {[%clk 0:00:06.1]} 50. g4 {[%clk
0:00:04.9]} 50... hxg4+ {[%clk 0:00:04.4]} 51. Kxg4 {[%clk 0:00:05.8]} 51... Ke6
{[%clk 0:00:04.8]} 52. h5 {[%clk 0:00:06.7]} 52... Kf7 {[%clk 0:00:05.3]} 53.
Kf5 {[%clk 0:00:05.3]} 53... Re8 {[%clk 0:00:04.1]} 54. h6 {[%clk 0:00:05]}
54... b5 {[%clk 0:00:03.1]} 55. Bf6 {[%clk 0:00:03.1]} 55... b4 {[%clk
0:00:02.7]} 56. axb4 {[%clk 0:00:03.7]} 56... axb4 {[%clk 0:00:03.6]} 57. h7
{[%clk 0:00:01.7]} 57... b3 {[%clk 0:00:03.9]} 0-1

[Event "Late-Titled-Tuesday-Blitz-April-02-2024"]
[Site "Chess.com"]
[Date "2024.04.02"]
[Round "6"]
[White "santosalberto1987"]
[Black "KATPAH"]
[Result "1-0"]
[WhiteElo "2527"]
[BlackElo "2664"]
[TimeControl "180+1"]
[EndTime "15:04:54 PDT"]
[Termination "santosalberto1987 won by checkmate"]

1. e4 {[%clk 0:03:00.9]} 1... e5 {[%clk 0:03:00.1]} 2. Nf3 {[%clk 0:03:00.4]}
2... d6 {[%clk 0:03:00.5]} 3. d4 {[%clk 0:03:00.1]} 3... Bg4 {[%clk 0:03:01.3]}
4. dxe5 {[%clk 0:02:57.4]} 4... Nd7 {[%clk 0:03:02]} 5. e6 {[%clk 0:02:49.4]}
5... fxe6 {[%clk 0:03:01.4]} 6. Nc3 {[%clk 0:02:48.9]} 6... Ngf6 {[%clk
0:03:00]} 7. Be2 {[%clk 0:02:47.8]} 7... e5 {[%clk 0:02:51.2]} 8. h3 {[%clk
0:02:44.8]} 8... Bh5 {[%clk 0:02:47.3]} 9. Be3 {[%clk 0:02:38.9]} 9... c6 {[%clk
0:02:41.6]} 10. Qd2 {[%clk 0:02:37]} 10... Be7 {[%clk 0:02:30.5]} 11. Ng5 {[%clk
0:02:36.1]} 11... Bxe2 {[%clk 0:02:30.1]} 12. Qxe2 {[%clk 0:02:37]} 12... Qa5
{[%clk 0:02:25.5]} 13. Ne6 {[%clk 0:02:31.1]} 13... Nxe4 {[%clk 0:02:22.1]} 14.
O-O {[%clk 0:02:15.4]} 14... Nxc3 {[%clk 0:02:20]} 15. bxc3 {[%clk 0:02:15.1]}
15... g6 {[%clk 0:02:18]} 16. f4 {[%clk 0:02:14.1]} 16... Nf8 {[%clk 0:02:07.6]}
17. fxe5 {[%clk 0:02:06.9]} 17... Nxe6 {[%clk 0:02:05.3]} 18. exd6 {[%clk
0:02:07.2]} 18... Bxd6 {[%clk 0:01:27.4]} 19. Bd4 {[%clk 0:02:07.3]} 19... Ke7
{[%clk 0:01:26.4]} 20. Rae1 {[%clk 0:01:57.9]} 20... Qd5 {[%clk 0:01:24.2]} 21.
Rf6 {[%clk 0:01:57.5]} 21... Rhd8 {[%clk 0:00:46.9]} 22. Rxe6+ {[%clk 0:01:55]}
22... Kd7 {[%clk 0:00:47.1]} 23. Bf6 {[%clk 0:01:38.9]} 23... Rf8 {[%clk
0:00:35.9]} 24. Be7 {[%clk 0:01:25.4]} 24... Bc5+ {[%clk 0:00:33.6]} 25. Kh1
{[%clk 0:01:22.3]} 25... Rf2 {[%clk 0:00:25.5]} 26. Qg4 {[%clk 0:01:21.6]} 26...
Kc7 {[%clk 0:00:17.3]} 27. Rd1 {[%clk 0:01:00.1]} 27... Rxg2 {[%clk 0:00:09]}
28. Rxd5 {[%clk 0:00:56.2]} 28... Rxg4 {[%clk 0:00:09.3]} 29. hxg4 {[%clk
0:00:49.5]} 29... cxd5 {[%clk 0:00:09.7]} 30. Bxc5 {[%clk 0:00:49.7]} 30... b6
{[%clk 0:00:09]} 31. Bd4 {[%clk 0:00:48.5]} 31... Rf8 {[%clk 0:00:08.6]} 32.
Re7+ {[%clk 0:00:47.9]} 32... Kc6 {[%clk 0:00:09.2]} 33. Rxh7 {[%clk 0:00:46.8]}
33... Rf4 {[%clk 0:00:07]} 34. g5 {[%clk 0:00:44.8]} 34... Rf1+ {[%clk
0:00:07.1]} 35. Kg2 {[%clk 0:00:44.8]} 35... Rc1 {[%clk 0:00:08]} 36. Rxa7
{[%clk 0:00:43.5]} 36... Rxc2+ {[%clk 0:00:08.9]} 37. Kf3 {[%clk 0:00:43.5]}
37... Rc1 {[%clk 0:00:03.7]} 38. Rg7 {[%clk 0:00:42.3]} 38... Kb5 {[%clk
0:00:03.7]} 39. Rxg6 {[%clk 0:00:41.7]} 39... Rf1+ {[%clk 0:00:04.4]} 40. Kg4
{[%clk 0:00:41.6]} 40... Ra1 {[%clk 0:00:04.3]} 41. Rxb6+ {[%clk 0:00:41.2]}
41... Kc4 {[%clk 0:00:04.5]} 42. Kf5 {[%clk 0:00:40.2]} 42... Rxa2 {[%clk
0:00:04.2]} 43. g6 {[%clk 0:00:40.4]} 43... Ra7 {[%clk 0:00:04]} 44. g7 {[%clk
0:00:40.2]} 44... Rf7+ {[%clk 0:00:03.5]} 45. Kg6 {[%clk 0:00:39.9]} 45... Rxg7+
{[%clk 0:00:03.2]} 46. Kxg7 {[%clk 0:00:39.5]} 46... Kd3 {[%clk 0:00:04.1]} 47.
Kf6 {[%clk 0:00:38.5]} 47... Kc4 {[%clk 0:00:05]} 48. Ke5 {[%clk 0:00:38.2]}
48... Kd3 {[%clk 0:00:05.9]} 49. Kxd5 {[%clk 0:00:38.2]} 49... Kc2 {[%clk
0:00:06.2]} 50. c4 {[%clk 0:00:37.9]} 50... Kd3 {[%clk 0:00:06.4]} 51. c5 {[%clk
0:00:37.4]} 51... Ke2 {[%clk 0:00:07]} 52. Rb3 {[%clk 0:00:35.8]} 52... Kd2
{[%clk 0:00:07.2]} 53. c6 {[%clk 0:00:36]} 53... Kc2 {[%clk 0:00:07.7]} 54. Rc3+
{[%clk 0:00:36]} 54... Kb2 {[%clk 0:00:07.7]} 55. c7 {[%clk 0:00:35.6]} 55...
Ka1 {[%clk 0:00:08.4]} 56. c8=Q {[%clk 0:00:35.2]} 56... Ka2 {[%clk 0:00:09.3]}
57. Qb7 {[%clk 0:00:31.2]} 57... Ka1 {[%clk 0:00:01.4]} 58. Ra3# {[%clk
0:00:05]} 1-0